fUST/lending_fUST_20250224
["ID","MTS","AMOUNT","RATE_DAILY","PERIOD"]
[354256508,1740369042984,-160.990517,0.00016025,2]
[354256511,1740369042993,-160.990517,0.00016025,2]
[354256515,1740369043002,-151.0,0.00016025,2]
[354256519,1740369043011,-151.0,0.00016025,2]
[354256522,1740369043020,-6222.82490467,0.00016025,2]
[354256526,1740369043030,-556.42183263,0.00016063,2]
[354256530,1740369043038,-26212.68070879,0.00016071,2]
[354256543,1740369043102,-2165.58971651,0.00016071,2]
[354256546,1740369043112,-151.0,0.00016081,2]
[354256549,1740369043121,-164.637278,0.00016081,2]
[354256553,1740369043132,-370.83548,0.00016081,2]
[354256555,1740369043144,-151.0,0.00016081,2]
[354256560,1740369043154,-370.83548,0.00016081,2]
[354256562,1740369043165,-164.637278,0.00016081,2]
[354256565,1740369043176,-151.0,0.00016081,2]
[354256568,1740369043185,-151.0,0.00016081,2]
[354256572,1740369043195,-156.454369,0.00016082,2]
[354256574,1740369043203,-285.369546,0.00016082,2]
[354256578,1740369043213,-151.946227,0.00016082,2]
[354256581,1740369043222,-151.0,0.00016082,2]
[354256582,1740369043232,-151.0,0.00016082,2]
[354256585,1740369043241,-2828.09857,0.00016082,2]
[354256587,1740369043250,-2828.09857,0.00016082,2]
[354256588,1740369043260,-713.8329435,0.00016082,2]
[354256589,1740369043269,-710.1457906,0.00016082,2]
[354256590,1740369043278,-355.2534587,0.00016082,2]
[354256591,1740369043287,-38984.91922843,0.0001609,2]
[354256593,1740369043296,-556.42183263,0.00016163,2]
[354256595,1740369043305,-499.0,0.00016164,2]
[354256597,1740369043314,-500.0,0.00016173,2]
[354256599,1740369043323,-500.0,0.00016173,2]
[354256601,1740369043333,-1003.30212726,0.00016173,2]
[354256603,1740369043342,-151.0,0.00016182,2]
[354256605,1740369043351,-151.0,0.00016182,2]
[354256607,1740369043361,-160.990517,0.00016182,2]
[354256609,1740369043370,-160.990517,0.00016182,2]
[354256611,1740369043379,-151.0,0.00016182,2]
[354256613,1740369043388,-151.0,0.00016182,2]
[354256615,1740369043398,-28378.2704253,0.00016182,2]
[354256617,1740369043407,-500.0,0.00016189,2]
[354256619,1740369043417,-180.20787326,0.00016189,2]
[354256621,1740369043427,-640.93164332,0.00016189,2]
[354256623,1740369043437,-151.0,0.0001619,2]
[354256625,1740369043446,-151.0,0.0001619,2]
[354256627,1740369043455,-498.74344,0.0001619,2]
[354256629,1740369043464,-498.74344,0.0001619,2]
[354256631,1740369043473,-28378.2704253,0.0001619,2]
[354256634,1740369043482,-151.0,0.00016192,2]
[354256636,1740369043492,-151.0,0.00016192,2]
[354256638,1740369043500,-151.0,0.00016192,2]
[354256640,1740369043510,-164.637278,0.00016192,2]
[354256642,1740369043519,-370.83548,0.00016192,2]
[354256644,1740369043528,-151.0,0.00016192,2]
[354256646,1740369043537,-370.83548,0.00016192,2]
[354256647,1740369043546,-164.637278,0.00016192,2]
[354256649,1740369043556,-151.0,0.00016192,2]
[354256652,1740369043565,-152.097181,0.00016192,2]
[354256654,1740369043574,-151.0,0.00016192,2]
[354256656,1740369043584,-151.0,0.00016192,2]
[354256658,1740369043594,-2828.09857,0.00016192,2]
[354256660,1740369043603,-2828.09857,0.00016192,2]
[354256663,1740369043612,-28378.2704253,0.00016192,2]
[354256666,1740369043621,-275.04189358,0.000162,5]
[354256669,1740369043630,-2500.0,0.000162,2]
[354256671,1740369043639,-151.0,0.000162,2]
[354256673,1740369043649,-151.0,0.000162,2]
[354256676,1740369043658,-194.330454,0.000162,2]
[354256680,1740369043671,-194.330454,0.000162,2]
[354256683,1740369043681,-151.0,0.000162,2]
[354256686,1740369043690,-151.0,0.000162,2]
[354256688,1740369043700,-160.990517,0.000162,2]
[354256692,1740369043711,-160.990517,0.000162,2]
[354256695,1740369043721,-151.0,0.000162,2]
[354256698,1740369043730,-151.0,0.000162,2]
[354256701,1740369043742,-500.0,0.000162,2]
[354256704,1740369043751,-151.0,0.00016202,2]
[354256707,1740369043760,-152.751853,0.00016202,2]
[354256710,1740369043771,-151.0,0.00016202,2]
[354256713,1740369043781,-151.156357,0.00016202,2]
[354256716,1740369043790,-151.0,0.00016202,2]
[354256719,1740369043800,-151.0,0.00016202,2]
[354256722,1740369043810,-498.74344,0.00016202,2]
[354256725,1740369043819,-498.74344,0.00016202,2]
[354256728,1740369043829,-164.637278,0.00016202,2]
[354256731,1740369043838,-370.83548,0.00016202,2]
[354256734,1740369043848,-151.0,0.00016202,2]
[354256737,1740369043858,-370.83548,0.00016202,2]
[354256740,1740369043868,-164.637278,0.00016202,2]
[354256743,1740369043877,-151.0,0.00016202,2]
[354256746,1740369043886,-151.0,0.00016202,2]
[354256749,1740369043896,-151.0,0.00016202,2]
[354256752,1740369043905,-2828.09857,0.00016202,2]
[354256755,1740369043915,-2828.09857,0.00016202,2]
[354256758,1740369043927,-194.330454,0.00016202,2]
[354256761,1740369043936,-194.330454,0.00016202,2]
[354256764,1740369043945,-151.0,0.00016202,2]
[354256767,1740369043954,-160.990517,0.00016202,2]
[354256770,1740369043964,-160.990517,0.00016202,2]
[354256773,1740369043973,-151.0,0.00016202,2]
[354256776,1740369043983,-151.0,0.00016202,2]
[354256779,1740369043992,-5000.0,0.00016202,2]
[354256782,1740369044002,-5000.0,0.00016202,2]
[354256785,1740369044011,-5000.0,0.00016202,2]
[354256788,1740369044021,-5000.0,0.00016202,2]
[354256791,1740369044030,-5000.0,0.00016202,2]
[354256794,1740369044039,-8233.89924914,0.00016202,2]
[354256797,1740369044050,-5000.0,0.00016202,2]
[354256800,1740369044060,-5000.0,0.00016202,2]
[354256803,1740369044070,-5000.0,0.00016202,2]
[354256806,1740369044079,-1007.64611968,0.0001621,2]
[354256809,1740369044089,-556.42183263,0.00016263,2]
[354256812,1740369044098,-150.16782902,0.00016292,4]
[354256815,1740369044108,-3722.62,0.000163,5]
[354256818,1740369044117,-2464.14846289,0.0001633,2]
[354256821,1740369044127,-606.03321046,0.0001633,2]
[354256823,1740369044136,-606.03321046,0.0001633,2]
[354256825,1740369044145,-606.03321046,0.0001633,2]
[354256827,1740369044154,-606.03321046,0.0001633,2]
[354256829,1740369044164,-606.03321046,0.0001633,2]
[354256831,1740369044176,-606.03321046,0.0001633,2]
[354256833,1740369044186,-606.03321046,0.0001633,2]
[354256835,1740369044196,-606.03321046,0.0001633,2]
[354256837,1740369044205,-606.03321046,0.0001633,2]
[354256839,1740369044215,-606.03321046,0.0001633,2]
[354256841,1740369044224,-606.03321046,0.0001633,2]
[354256843,1740369044233,-606.03321046,0.0001633,2]
[354256845,1740369044242,-606.03321046,0.0001633,2]
[354256847,1740369044251,-606.03321046,0.0001633,2]
[354256849,1740369044260,-606.03321046,0.0001633,2]
[354256851,1740369044269,-606.03321046,0.0001633,2]
[354256853,1740369044278,-606.03321046,0.0001633,2]
[354256855,1740369044287,-606.03321046,0.0001633,2]
[354256857,1740369044296,-606.03321046,0.0001633,2]
[354256859,1740369044306,-606.03,0.0001633,2]
[354256861,1740369044315,-1414.07749108,0.0001633,2]
[354256863,1740369044324,-1414.07749108,0.0001633,2]
[354256865,1740369044333,-1414.07749108,0.0001633,2]
[354256867,1740369044342,-1414.07749108,0.0001633,2]
[354256869,1740369044351,-1414.07749108,0.0001633,2]
[354256871,1740369044361,-1414.07749108,0.0001633,2]
[354256873,1740369044370,-1414.07749108,0.0001633,2]
[354256875,1740369044380,-1414.07749108,0.0001633,2]
[354256877,1740369044390,-1414.07749108,0.0001633,2]
[354256878,1740369044399,-1414.07749108,0.0001633,2]
[354256880,1740369044408,-1414.07749108,0.0001633,2]
[354256882,1740369044417,-1414.07749108,0.0001633,2]
[354256884,1740369044428,-1414.07749108,0.0001633,2]
[354256886,1740369044437,-1414.07749108,0.0001633,2]
[354256888,1740369044446,-1414.07749108,0.0001633,2]
[354256890,1740369044455,-1414.07749108,0.0001633,2]
[354256892,1740369044464,-1414.07749108,0.0001633,2]
[354256893,1740369044473,-1414.07749108,0.0001633,2]
[354256894,1740369044482,-1414.07749108,0.0001633,2]
[354256895,1740369044492,-1414.07,0.0001633,2]
[354256896,1740369044501,-198.76,0.0001633,2]
[354256897,1740369044510,-154.5940875,0.0001633,2]
[354256898,1740369044519,-154.5940875,0.0001633,2]
[354256899,1740369044528,-154.59,0.0001633,2]
[354256900,1740369044537,-161.39012869,0.0001633,2]
[354256901,1740369044547,-161.39012869,0.0001633,2]
[354256902,1740369044556,-161.39012869,0.0001633,2]
[354256903,1740369044566,-161.39012869,0.0001633,2]
[354256904,1740369044575,-161.39012869,0.0001633,2]
[354256905,1740369044585,-161.39012869,0.0001633,2]
[354256906,1740369044594,-161.39012869,0.0001633,2]
[354256907,1740369044603,-161.39012869,0.0001633,2]
[354256908,1740369044612,-161.39012869,0.0001633,2]
[354256909,1740369044621,-161.39012869,0.0001633,2]
[354256910,1740369044631,-161.39,0.0001633,2]
[354256911,1740369044640,-207.11733182,0.0001633,2]
[354256912,1740369044650,-207.11733182,0.0001633,2]
[354256913,1740369044660,-207.11733182,0.0001633,2]
[354256914,1740369044674,-207.11733182,0.0001633,2]
[354256916,1740369044683,-207.11733182,0.0001633,2]
[354256918,1740369044693,-207.11733182,0.0001633,2]
[354256920,1740369044703,-207.11733182,0.0001633,2]
[354256922,1740369044713,-207.11733182,0.0001633,2]
[354256924,1740369044722,-207.11733182,0.0001633,2]
[354256926,1740369044731,-207.11733182,0.0001633,2]
[354256928,1740369044741,-207.11733182,0.0001633,2]
[354256929,1740369044751,-207.11733182,0.0001633,2]
[354256931,1740369044761,-207.11733182,0.0001633,2]
[354256934,1740369044770,-207.11733182,0.0001633,2]
[354256935,1740369044780,-207.11733182,0.0001633,2]
[354256937,1740369044789,-207.11733182,0.0001633,2]
[354256939,1740369044798,-207.11733182,0.0001633,2]
[354256941,1740369044808,-207.11733182,0.0001633,2]
[354256943,1740369044818,-207.11733182,0.0001633,2]
[354256945,1740369044827,-207.11,0.0001633,2]
[354256947,1740369044837,-2157.82444821,0.00016338,2]
[354256952,1740369044869,-151.0,0.00014931,2]
[354256954,1740369044878,-842.17555179,0.00016338,2]
[354256956,1740369044887,-308.2200478,0.00016356,2]
[354256958,1740369044897,-307.3328376,0.00016356,2]
[354256960,1740369044907,-557.1188801,0.00016356,2]
[354256962,1740369044916,-155.8786511,0.00016356,2]
[354256964,1740369044929,-154.8331553,0.00016356,2]
[354256966,1740369044939,-1114.4532316,0.00016356,2]
[354256968,1740369044948,-154.8331553,0.00016356,2]
[354256970,1740369044958,-557.2266158,0.00016356,2]
[354256972,1740369044967,-154.8331553,0.00016356,2]
[354256974,1740369044977,-3389.97793195,0.00016363,2]
[354256976,1740369044986,-556.42183263,0.00016363,2]
[354256978,1740369044996,-151.0,0.000164,2]
[354256980,1740369045006,-21075.33762816,0.000164,2]
[354256982,1740369045018,-5239.90386476,0.000164,2]
[354256984,1740369045030,-2063.02893238,0.000164,2]
[354256986,1740369045039,-151.0,0.0001642,2]
[354256988,1740369045048,-151.0,0.0001642,2]
[354256990,1740369045057,-257.382732,0.0001642,2]
[354256992,1740369045067,-151.0,0.0001642,2]
[354256994,1740369045077,-151.0,0.0001642,2]
[354256996,1740369045086,-151.0,0.0001642,2]
[354256998,1740369045096,-151.0,0.0001642,2]
[354257000,1740369045105,-151.0,0.0001642,2]
[354257002,1740369045114,-498.74344,0.0001642,2]
[354257004,1740369045124,-498.74344,0.0001642,2]
[354257006,1740369045133,-370.83548,0.0001642,2]
[354257008,1740369045142,-164.637278,0.0001642,2]
[354257010,1740369045152,-151.0,0.0001642,2]
[354257012,1740369045161,-370.83548,0.0001642,2]
[354257014,1740369045170,-164.637278,0.0001642,2]
[354257016,1740369045181,-151.0,0.0001642,2]
[354257018,1740369045191,-151.0,0.0001642,2]
[354257020,1740369045201,-151.0,0.0001642,2]
[354257022,1740369045210,-2828.09857,0.0001642,2]
[354257024,1740369045221,-2828.09857,0.0001642,2]
[354257026,1740369045231,-151.0,0.0001642,2]
[354257029,1740369045241,-160.990517,0.0001642,2]
[354257031,1740369045250,-160.990517,0.0001642,2]
[354257033,1740369045259,-151.0,0.0001642,2]
[354257035,1740369045269,-157.168624,0.0001642,2]
[354257037,1740369045278,-28378.2704253,0.0001642,2]
[354257039,1740369045287,-6985.76220962,0.0001643,7]
[354257041,1740369045298,-452.112233,0.0001643,7]
[354257538,1740369306667,1012.54681071,0.00018111,120]
[354257541,1740370154467,193.544293,9.041e-05,2]
[354257613,1740370232746,-1215.5387898,0.00012882,2]
[354257615,1740370232758,-8773.75310103,0.00012882,2]
[354258207,1740370238441,-442.2315297,0.00012882,2]
[354258478,1740370240658,-10068.23229997,0.00012882,2]
[354258480,1740370240667,-224.62779808,0.00013598,2]
[354258482,1740370240676,-500.0,0.00013698,2]
[354258484,1740370240685,-500.84024364,0.00013698,2]
[354258486,1740370240694,-500.0,0.00013698,2]
[354258499,1740370240811,-500.0,0.00013698,2]
[354258501,1740370240820,-501.79002054,0.00013698,2]
[354258503,1740370240829,-500.0,0.00013698,2]
[354258505,1740370240838,-591.61,0.00013698,2]
[354258507,1740370240847,-500.0,0.00013698,2]
[354258509,1740370240857,-500.0,0.00013698,2]
[354258511,1740370240866,-500.0,0.00013698,2]
[354258513,1740370240876,-597.98,0.00013698,2]
[354258515,1740370240885,-500.0,0.00013698,2]
[354258517,1740370240897,-500.0,0.00013698,2]
[354258519,1740370240907,-500.0,0.00013698,2]
[354258521,1740370240917,-500.0,0.00013698,2]
[354258523,1740370240927,-500.0,0.00013698,2]
[354258525,1740370240937,-500.0,0.00013698,2]
[354258527,1740370240947,-500.0,0.00013698,2]
[354258529,1740370240956,-500.0,0.00013698,2]
[354258531,1740370240966,-500.0,0.00013698,2]
[354258533,1740370240976,-500.0,0.00013698,2]
[354258535,1740370240985,-500.0,0.00013698,2]
[354258537,1740370240995,-500.0,0.00013698,2]
[354258539,1740370241005,-500.0,0.00013698,2]
[354258541,1740370241015,-500.0,0.00013698,2]
[354258542,1740370241024,-513.40795082,0.00013698,2]
[354258545,1740370241034,-183.957467,0.00013699,2]
[354258547,1740370241044,-500.0,0.00013778,2]
[354258549,1740370241053,-500.0,0.00013778,2]
[354258551,1740370241066,-398.75196014,0.00013778,2]
[354258553,1740370241075,-500.0,0.00013778,2]
[354258555,1740370241085,-500.0,0.00013778,2]
[354258557,1740370241094,-500.0,0.00013778,2]
[354258559,1740370241103,-501.76614266,0.00013779,2]
[354258561,1740370241113,-500.0,0.00013779,2]
[354258563,1740370241122,-500.0,0.00013779,2]
[354258565,1740370241131,-548.61105112,0.00013779,2]
[354258567,1740370241142,-603.873712,0.00013779,2]
[354258569,1740370241152,-500.0,0.00013779,2]
[354258571,1740370241162,-500.0,0.00013779,2]
[354258573,1740370241171,-500.0,0.00013779,2]
[354258575,1740370241180,-500.0,0.00013779,2]
[354258577,1740370241189,-496.81108786,0.00013779,2]
[354258579,1740370241198,-500.0,0.00013779,2]
[354258581,1740370241207,-306.96,0.00013779,2]
[354258583,1740370241216,-500.0,0.00013779,2]
[354258585,1740370241225,-500.0,0.00013779,2]
[354258587,1740370241234,-500.0,0.00013779,2]
[354258589,1740370241243,-500.0,0.00013779,2]
[354258591,1740370241252,-500.0,0.00013779,2]
[354258593,1740370241261,-316.33288857,0.00013779,2]
[354258595,1740370241270,-500.0,0.00013779,2]
[354258597,1740370241279,-632.96803381,0.00013779,2]
[354258599,1740370241289,-601.69,0.00013779,2]
[354258601,1740370241298,-500.0,0.00013779,2]
[354258603,1740370241307,-500.0,0.00013779,2]
[354258605,1740370241316,-500.0,0.00013779,2]
[354258607,1740370241326,-500.0,0.00013779,2]
[354258609,1740370241335,-500.0,0.00013779,2]
[354258611,1740370241344,-266.79,0.00013779,2]
[354258613,1740370241353,-500.0,0.00013779,2]
[354258615,1740370241363,-500.0,0.00013779,2]
[354258617,1740370241372,-500.0,0.00013779,2]
[354258619,1740370241381,-501.27,0.00013779,2]
[354258621,1740370241390,-500.0,0.00013779,2]
[354258623,1740370241399,-500.0,0.0001378,2]
[354258625,1740370241409,-500.0,0.0001378,2]
[354258627,1740370241419,-500.0,0.0001378,2]
[354258629,1740370241429,-500.0,0.0001378,2]
[354258631,1740370241438,-562.67,0.0001378,2]
[354258633,1740370241447,-500.0,0.0001378,2]
[354258635,1740370241457,-214.30584692,0.00013845,2]
[354258637,1740370241466,-627.05,0.0001386,2]
[354258639,1740370241475,-500.0,0.0001386,2]
[354258640,1740370241485,-500.0,0.0001386,2]
[354258642,1740370241494,-500.0,0.00013861,2]
[354258644,1740370241503,-601.69,0.00013861,2]
[354258646,1740370241512,-500.0,0.00013861,2]
[354258648,1740370241522,-500.0,0.00013863,2]
[354258649,1740370241531,-155.77,0.00013863,2]
[354258651,1740370241540,-500.0,0.00013863,2]
[354258653,1740370241550,-500.0,0.00013863,2]
[354258655,1740370241559,-500.0,0.00013863,2]
[354258657,1740370241568,-396.0,0.00013937,2]
[354258658,1740370241577,-500.0,0.00013939,2]
[354258660,1740370241587,-500.0,0.00013939,2]
[354258662,1740370241596,-500.0,0.00013939,2]
[354258664,1740370241605,-19601.91606613,0.00013939,2]
[354258666,1740370241614,-500.0,0.00013943,2]
[354258667,1740370241624,-203.66,0.00013943,2]
[354258669,1740370241633,-601.69,0.00013944,2]
[354258671,1740370241642,-500.0,0.00013944,2]
[354258673,1740370241652,-500.0,0.00013945,2]
[354258675,1740370241661,-355.53,0.00013945,2]
[354258676,1740370241670,-500.0,0.00013945,2]
[354258678,1740370241679,-362.59,0.00013945,2]
[354258680,1740370241688,-156.796,0.00014003,2]
[354258682,1740370241697,-500.0,0.00014025,2]
[354258684,1740370241706,-601.69,0.00014026,2]
[354258686,1740370241715,-500.0,0.00014026,2]
[354258688,1740370241724,-500.0,0.00014027,2]
[354258689,1740370241733,-500.0,0.00014027,2]
[354258691,1740370241742,-594.02,0.00014107,2]
[354258693,1740370241751,-601.69,0.00014108,2]
[354258695,1740370241760,-500.0,0.00014108,2]
[354258696,1740370241769,-628.9542851,0.00014109,2]
[354258698,1740370241779,-500.0,0.00014109,2]
[354258700,1740370241787,-601.69,0.0001419,2]
[354258702,1740370241797,-500.0,0.0001419,2]
[354258704,1740370241805,-500.0,0.00014191,2]
[354258705,1740370241814,-601.69,0.00014272,2]
[354258707,1740370241824,-500.0,0.00014272,2]
[354258709,1740370241833,-500.0,0.00014273,2]
[354258711,1740370241842,-601.69,0.00014355,2]
[354258713,1740370241851,-500.0,0.00014355,2]
[354258714,1740370241860,-500.0,0.00014356,2]
[354258716,1740370241869,-601.69,0.00014437,2]
[354258718,1740370241878,-500.0,0.00014437,2]
[354258720,1740370241887,-500.0,0.00014438,2]
[354258722,1740370241896,-886.68,0.000145,2]
[354258723,1740370241905,-601.69,0.00014519,2]
[354258725,1740370241914,-500.0,0.00014519,2]
[354258727,1740370241923,-500.0,0.0001452,2]
[354258729,1740370241932,-601.69,0.00014601,2]
[354258731,1740370241941,-500.0,0.00014601,2]
[354258732,1740370241950,-500.0,0.00014602,2]
[354258734,1740370241959,-601.69,0.00014683,2]
[354258736,1740370241968,-500.0,0.00014683,2]
[354258738,1740370241977,-275.74,0.00014684,2]
[354258740,1740370241987,-601.69,0.00014766,2]
[354258742,1740370241996,-500.0,0.00014766,2]
[354258744,1740370242005,-601.69,0.00014848,2]
[354258746,1740370242013,-609.35,0.00014848,2]
[354258747,1740370242022,-601.69,0.0001493,2]
[354258749,1740370242031,-3482.68,0.00014989,2]
[354258751,1740370242040,-18455.1271478,0.00015003,2]
[354258753,1740370242049,-601.69,0.00015012,2]
[354258754,1740370242059,-601.69,0.00015094,2]
[354258756,1740370242070,-601.69,0.00015176,2]
[354258758,1740370242079,-500.0,0.00015259,2]
[354258760,1740370242088,-500.0,0.00015259,2]
[354258762,1740370242099,-601.69,0.00015259,2]
[354258764,1740370242107,-601.69,0.00015341,2]
[354258766,1740370242117,-501.86175176,0.00015363,2]
[354258768,1740370242126,-601.69,0.00015423,2]
[354258770,1740370242135,-501.86175176,0.00015463,2]
[354258771,1740370242146,-601.69,0.00015505,2]
[354258773,1740370242155,-501.86175176,0.00015563,2]
[354258775,1740370242164,-154.8331553,0.00015578,2]
[354258777,1740370242173,-154.5043721,0.00015578,2]
[354258779,1740370242182,-601.69,0.00015587,2]
[354258781,1740370242191,-465.02764054,0.00015658,2]
[354258783,1740370242201,-501.86175176,0.00015663,2]
[354258784,1740370242210,-601.7271,0.0001567,2]
[354258786,1740370242219,-154.8331553,0.00015678,2]
[354258788,1740370242227,-501.86175176,0.00015763,2]
[354258790,1740370242236,-193.544293,0.00015775,2]
[354258792,1740370242245,-501.86175176,0.00015863,2]
[354258794,1740370242255,-383.88,0.00015961,2]
[354258795,1740370242264,-501.86175176,0.00015963,2]
[354258797,1740370242273,-150.0,0.00016,2]
[354258799,1740370242282,-501.86175176,0.00016063,2]
[354258801,1740370242291,-585.5721013,0.00016091,2]
[354258803,1740370242300,-500.0,0.00016126,2]
[354258805,1740370242309,-1612.62836502,0.00016131,2]
[354258807,1740370242317,-501.86175176,0.00016163,2]
[354258808,1740370242327,-18455.1271478,0.0001619,2]
[354258810,1740370242336,-499.0,0.00016199,2]
[354258812,1740370242345,-501.86175176,0.00016263,2]
[354258814,1740370242354,-150.0,0.000163,4]
[354258816,1740370242363,-1642.76564192,0.00016338,2]
[354258818,1740370242372,-501.86175176,0.00016363,2]
[354258820,1740370242381,-18455.1271478,0.0001639,2]
[354258822,1740370242390,-151.0,0.000164,2]
[354258823,1740370242399,-16000.0,0.000164,2]
[354258825,1740370242408,-217.67377512,0.00016419,2]
[354258827,1740370242417,-7067.05296088,0.0001642,2]
[354258972,1740370243540,-19445.13773046,0.0001642,2]
[354258974,1740370243552,-64829.62097216,0.0001642,2]
[354259082,1740370246442,-1347.07999999,0.0001642,2]
[354262545,1740370791232,4000.0,0.000164,120]
[354262546,1740371123888,2347.84,0.00019,120]
[354262551,1740371313793,1142.58282213,0.000181,90]
[354262578,1740371432837,-183.957467,0.00013699,2]
[354262580,1740371432851,-224.62779808,0.000144,2]
[354262582,1740371432862,-260.4992829,0.00014499,2]
[354262587,1740371432910,-39.5007171,0.00014499,2]
[354262589,1740371432920,-348.76344968,0.000145,2]
[354262591,1740371432935,-343.55762178,0.000145,2]
[354262595,1740371432965,-44986.52387429,0.000145,2]
[354262597,1740371432976,-886.68,0.000145,2]
[354262599,1740371432987,-622.0534411,0.00014785,2]
[354262601,1740371432998,-16000.0,0.00015425,2]
[354262602,1740371433008,-585.5721013,0.00016091,2]
[354262603,1740371433019,-19601.91606613,0.00016112,2]
[354262604,1740371433030,-500.0,0.00016199,2]
[354262605,1740371433041,-500.0,0.00016199,2]
[354262606,1740371433051,-3329.15,0.00016199,2]
[354262607,1740371433062,-500.0,0.00016199,2]
[354262608,1740371433074,-20755.60143612,0.000162,2]
[354262609,1740371433085,-20755.60143611,0.000162,2]
[354262610,1740371433096,-16930.70652816,0.000162,2]
[354262649,1740371438664,-3824.89490795,0.000162,2]
[354262651,1740371438674,-383.88,0.00016238,2]
[354262653,1740371438684,-500.0,0.00016281,2]
[354262655,1740371438693,-3329.15,0.00016281,2]
[354262657,1740371438703,-500.0,0.00016281,2]
[354262659,1740371438713,-1612.62836502,0.00016286,2]
[354262661,1740371438722,-500.0,0.00016319,2]
[354262663,1740371438731,-500.0,0.00016319,2]
[354262665,1740371438741,-509.61871099,0.00016319,2]
[354262667,1740371438750,-500.0,0.00016364,2]
[354262669,1740371438759,-3329.15,0.00016364,2]
[354262671,1740371438769,-500.0,0.00016364,2]
[354262673,1740371438778,-151.0,0.000164,2]
[354262676,1740371438788,-322.1069726,0.0001641,2]
[354262680,1740371438800,-1600.0,0.0001641,2]
[354262868,1740371440771,-24580.450738,0.0001641,2]
[354262870,1740371440781,-217.67377512,0.00016419,2]
[354262872,1740371440790,-499.0,0.00016419,2]
[354262874,1740371440800,-63987.70392629,0.0001642,5]
[354262876,1740371440812,-250.19210701,0.0001642,5]
[354263048,1740371443550,-396.0,0.00014675,2]
[354263049,1740371443560,-939.5,0.0001642,5]
[354263082,1740371446635,-6565.96206376,0.0001642,5]
[354263083,1740371446644,-15242.96518541,0.0001642,5]
[354263084,1740371446658,-35551.07242419,0.0001642,2]
[354263085,1740371446678,-3160.0000002,0.0001642,2]
[354263087,1740371893584,205.33059,9.041e-05,2]
[354263151,1740372632034,-179.631479,0.00013699,2]
[354263153,1740372632044,-11268.11776461,0.00014196,2]
[354263158,1740372632093,-476.98147719,0.00014196,2]
[354263160,1740372632103,-511.0590637,0.000144,2]
[354263162,1740372632112,-798.02,0.000145,2]
[354263164,1740372632120,-179.26509343,0.00015255,2]
[354263167,1740372632130,-19601.91606613,0.00015258,2]
[354263170,1740372632139,-500.0,0.00015296,2]
[354263173,1740372632148,-500.0,0.00015296,2]
[354263176,1740372632157,-500.0,0.00015316,2]
[354263179,1740372632167,-500.0,0.00015316,2]
[354263182,1740372632176,-500.0,0.00015316,2]
[354263184,1740372632185,-473.83060089,0.00015316,2]
[354263186,1740372632195,-500.0,0.00015316,2]
[354263188,1740372632204,-500.0,0.00015316,2]
[354263192,1740372632213,-500.0,0.00015316,2]
[354263194,1740372632223,-567.74,0.00015316,2]
[354263196,1740372632232,-500.0,0.00015316,2]
[354263198,1740372632241,-500.0,0.00015316,2]
[354263200,1740372632250,-500.0,0.00015316,2]
[354263202,1740372632259,-500.0,0.00015316,2]
[354263204,1740372632268,-506.71325543,0.00015316,2]
[354263206,1740372632277,-500.0,0.00015355,2]
[354263208,1740372632286,-500.0,0.00015355,2]
[354263210,1740372632296,-500.0,0.00015355,2]
[354263212,1740372632305,-500.0,0.00015355,2]
[354263214,1740372632314,-797.55,0.00015355,2]
[354263216,1740372632323,-500.0,0.00015355,2]
[354263218,1740372632332,-500.0,0.00015355,2]